[Event "Titled Tuesday Blitz July 25 Late 2023"]
[White "Ponizil, Cyril"]
[Black "Lenderman, Aleksandr"]
[WhiteFideId "322202"]
[BlackFideId "2021285"]
[WhiteElo "2618"]
[BlackElo "2884"]
[Result "1/2-1/2"]
[Round "5"]
[TimeControl "180+2"]
[Date "2023.07.25"]
[WhiteClock "0:00:03"]
[BlackClock "0:01:02"]
[Board "31"]

1. e4 {[%clk 0:03:00]}  d6 {[%clk 0:02:47]} 2. d4 {[%clk 0:03:00]}  Nf6 {[%clk 0:02:47]} 3. Nc3 {[%clk 0:03:00]}  e5 {[%clk 0:02:47]} 4. Nf3 {[%clk 0:03:01]}  Nbd7 {[%clk 0:02:46]} 5. Bc4 {[%clk 0:03:01]}  Be7 {[%clk 0:02:46]} 6. O-O {[%clk 0:03:01]}  c6 {[%clk 0:02:44]} 7. Re1 {[%clk 0:03:01]}  Qc7 {[%clk 0:02:44]} 8. a4 {[%clk 0:03:01]}  Nf8 {[%clk 0:02:44]} 9. a5 {[%clk 0:02:52]}  Ng6 {[%clk 0:02:41]} 10. Be3 {[%clk 0:02:46]}  O-O {[%clk 0:02:39]} 11. Qd2 {[%clk 0:02:46]}  Bg4 {[%clk 0:02:38]} 12. Be2 {[%clk 0:02:35]}  Rfe8 {[%clk 0:02:32]} 13. h3 {[%clk 0:02:33]}  Bxf3 {[%clk 0:02:29]} 14. Bxf3 {[%clk 0:02:32]}  exd4 {[%clk 0:02:30]} 15. Bxd4 {[%clk 0:02:31]}  Nd7 {[%clk 0:02:30]} 16. g3 {[%clk 0:02:26]}  Bf6 {[%clk 0:02:30]} 17. Bg2 {[%clk 0:02:25]}  Bxd4 {[%clk 0:02:24]} 18. Qxd4 {[%clk 0:02:25]}  Ndf8 {[%clk 0:02:25]} 19. a6 {[%clk 0:02:20]}  Ne6 {[%clk 0:02:22]} 20. Qd2 {[%clk 0:02:04]}  b5 {[%clk 0:02:21]} 21. Rad1 {[%clk 0:01:59]}  Rad8 {[%clk 0:02:20]} 22. h4 {[%clk 0:01:52]}  Ne5 {[%clk 0:02:19]} 23. b3 {[%clk 0:01:41]}  Qb6 {[%clk 0:02:19]} 24. Ra1 {[%clk 0:01:41]}  Nd4 {[%clk 0:02:13]} 25. Qd1 {[%clk 0:01:34]}  Ne6 {[%clk 0:02:10]} 26. Qd2 {[%clk 0:01:04]}  Nc7 {[%clk 0:02:10]} 27. Qe3 {[%clk 0:00:59]}  Rb8 {[%clk 0:02:07]} 28. f4 {[%clk 0:00:55]}  Ng4 {[%clk 0:02:01]} 29. Qxb6 {[%clk 0:00:53]}  Rxb6 {[%clk 0:02:02]} 30. Bf3 {[%clk 0:00:53]}  Nf6 {[%clk 0:01:56]} 31. Rad1 {[%clk 0:00:53]}  Rd8 {[%clk 0:01:42]} 32. e5 {[%clk 0:00:53]}  Nfe8 {[%clk 0:01:43]} 33. exd6 {[%clk 0:00:52]}  Rxd6 {[%clk 0:01:42]} 34. Rxd6 {[%clk 0:00:48]}  Nxd6 {[%clk 0:01:43]} 35. Re7 {[%clk 0:00:48]}  Nxa6 {[%clk 0:01:43]} 36. Ne4 {[%clk 0:00:45]}  Kf8 {[%clk 0:01:41]} 37. Rxa7 {[%clk 0:00:41]}  Nxe4 {[%clk 0:01:41]} 38. Bxe4 {[%clk 0:00:39]}  g6 {[%clk 0:01:41]} 39. h5 {[%clk 0:00:35]}  Nc5 {[%clk 0:01:39]} 40. Bf3 {[%clk 0:00:30]}  Ne6 {[%clk 0:01:33]} 41. h6 {[%clk 0:00:27]}  Nd4 {[%clk 0:01:33]} 42. Ra8+ {[%clk 0:00:26]}  Ke7 {[%clk 0:01:33]} 43. Be4 {[%clk 0:00:27]}  c5 {[%clk 0:01:33]} 44. Rh8 {[%clk 0:00:26]}  Re6 {[%clk 0:01:30]} 45. Bd3 {[%clk 0:00:26]}  Re1+ {[%clk 0:01:24]} 46. Kf2 {[%clk 0:00:26]}  Rc1 {[%clk 0:01:21]} 47. Rxh7 {[%clk 0:00:26]}  Kf6 {[%clk 0:01:21]} 48. Rh8 {[%clk 0:00:26]}  c4 {[%clk 0:01:22]} 49. bxc4 {[%clk 0:00:26]}  bxc4 {[%clk 0:01:22]} 50. Be4 {[%clk 0:00:18]}  Nf5 {[%clk 0:01:17]} 51. Bxf5 {[%clk 0:00:18]}  gxf5 {[%clk 0:01:18]} 52. Rc8 {[%clk 0:00:16]}  Rxc2+ {[%clk 0:01:18]} 53. Kf3 {[%clk 0:00:16]}  Kg6 {[%clk 0:01:18]} 54. Rc6+ {[%clk 0:00:17]}  f6 {[%clk 0:01:13]} 55. h7 {[%clk 0:00:15]}  Kxh7 {[%clk 0:01:14]} 56. Rxf6 {[%clk 0:00:16]}  c3 {[%clk 0:01:15]} 57. Rxf5 {[%clk 0:00:16]}  Rd2 {[%clk 0:01:15]} 58. Rc5 {[%clk 0:00:15]}  c2 {[%clk 0:01:15]} 59. g4 {[%clk 0:00:15]}  Kg7 {[%clk 0:01:15]} 60. g5 {[%clk 0:00:16]}  Kf7 {[%clk 0:01:12]} 61. Kg4 {[%clk 0:00:16]}  Rg2+ {[%clk 0:01:13]} 62. Kf5 {[%clk 0:00:16]}  Ke7 {[%clk 0:01:13]} 63. Rc7+ {[%clk 0:00:16]}  Kd6 {[%clk 0:01:13]} 64. Rc3 {[%clk 0:00:17]}  Kd5 {[%clk 0:01:14]} 65. g6 {[%clk 0:00:17]}  Kd4 {[%clk 0:01:14]} 66. Rc8 {[%clk 0:00:17]}  Kd3 {[%clk 0:01:15]} 67. Kf6 {[%clk 0:00:18]}  Ke4 {[%clk 0:01:10]} 68. f5 {[%clk 0:00:18]}  Rf2 {[%clk 0:01:11]} 69. Re8+ {[%clk 0:00:17]}  Kd5 {[%clk 0:01:09]} 70. Rc8 {[%clk 0:00:03]}  Ke4 {[%clk 0:01:09]} 71. Rxc2 {[%clk 0:00:03]}  Rxc2 {[%clk 0:01:07]} 72. g7 {[%clk 0:00:04]}  Rg2 {[%clk 0:01:00]} 73. Kf7 {[%clk 0:00:04]}  Kxf5 {[%clk 0:01:01]} 74. g8=Q {[%clk 0:00:05]}  Rxg8 {[%clk 0:01:02]} 75. Kxg8 {[%clk 0:00:03]} 1/2-1/2


[Site "https://www.chess.com"]

[Event "Titled Tuesday Blitz July 25 Late 2023"]
[White "Salik, Serkan"]
[Black "Fressinet, Laurent"]
[WhiteFideId "30952492"]
[BlackFideId "608742"]
[WhiteElo "2612"]
[BlackElo "2882"]
[Result "0-1"]
[Round "5"]
[TimeControl "180+2"]
[Date "2023.07.25"]
[WhiteClock "0:00:02"]
[BlackClock "0:00:49"]
[Board "32"]

1. d4 {[%clk 0:03:00]}  Nf6 {[%clk 0:02:57]} 2. c4 {[%clk 0:03:01]}  e5 {[%clk 0:02:56]} 3. dxe5 {[%clk 0:03:00]}  Ne4 {[%clk 0:02:56]} 4. Nf3 {[%clk 0:02:56]}  Nc6 {[%clk 0:02:56]} 5. Nbd2 {[%clk 0:02:55]}  Nc5 {[%clk 0:02:52]} 6. e3 {[%clk 0:02:50]}  d6 {[%clk 0:02:51]} 7. Nb3 {[%clk 0:02:37]}  Nxb3 {[%clk 0:02:42]} 8. Qxb3 {[%clk 0:02:32]}  dxe5 {[%clk 0:02:42]} 9. Be2 {[%clk 0:02:26]}  e4 {[%clk 0:02:35]} 10. Nd2 {[%clk 0:02:23]}  Bb4 {[%clk 0:02:35]} 11. a3 {[%clk 0:02:20]}  Bxd2+ {[%clk 0:02:34]} 12. Bxd2 {[%clk 0:02:21]}  Qg5 {[%clk 0:02:34]} 13. O-O-O {[%clk 0:01:42]}  O-O {[%clk 0:02:33]} 14. Bc3 {[%clk 0:01:39]}  Qg6 {[%clk 0:02:16]} 15. g4 {[%clk 0:01:29]}  a5 {[%clk 0:02:02]} 16. h4 {[%clk 0:01:25]}  a4 {[%clk 0:01:57]} 17. Qb5 {[%clk 0:01:09]}  Ne7 {[%clk 0:01:28]} 18. h5 {[%clk 0:01:07]}  Qe6 {[%clk 0:01:28]} 19. g5 {[%clk 0:00:52]}  Qf5 {[%clk 0:01:22]} 20. c5 {[%clk 0:00:28]}  Qxf2 {[%clk 0:01:17]} 21. g6 {[%clk 0:00:20]}  c6 {[%clk 0:01:13]} 22. Qc4 {[%clk 0:00:13]}  Be6 {[%clk 0:01:11]} 23. Qd4 {[%clk 0:00:13]}  Nf5 {[%clk 0:01:09]} 24. Qxe4 {[%clk 0:00:07]}  Qxe2 {[%clk 0:01:08]} 25. gxf7+ {[%clk 0:00:06]}  Bxf7 {[%clk 0:00:55]} 26. Qxf5 {[%clk 0:00:05]}  Bb3 {[%clk 0:00:54]} 27. Qd3 {[%clk 0:00:03]}  Bxd1 {[%clk 0:00:50]} 28. Qd4 {[%clk 0:00:02]}  Qc2# {[%clk 0:00:49]} 0-1


[Site "https://www.chess.com"]

[Event "Titled Tuesday Blitz July 25 Late 2023"]
[White "Medina Paz, Miguel"]
[Black "Donchenko, Alexander"]
[WhiteFideId "7300379"]
[BlackFideId "24603295"]
[WhiteElo "2598"]
[BlackElo "2821"]
[Result "0-1"]
[Round "5"]
[TimeControl "180+2"]
[Date "2023.07.25"]
[WhiteClock "0:01:46"]
[BlackClock "0:00:48"]
[Board "35"]

1. e4 {[%clk 0:03:00]}  c6 {[%clk 0:02:59]} 2. d4 {[%clk 0:03:00]}  d5 {[%clk 0:03:00]} 3. exd5 {[%clk 0:03:00]}  cxd5 {[%clk 0:03:01]} 4. Nf3 {[%clk 0:03:01]}  Nc6 {[%clk 0:03:00]} 5. Nbd2 {[%clk 0:03:01]}  Bg4 {[%clk 0:03:00]} 6. Bb5 {[%clk 0:03:01]}  e6 {[%clk 0:02:58]} 7. c4 {[%clk 0:03:02]}  Nf6 {[%clk 0:02:58]} 8. Qa4 {[%clk 0:03:01]}  Bxf3 {[%clk 0:02:49]} 9. Nxf3 {[%clk 0:03:01]}  Nd7 {[%clk 0:02:39]} 10. Bxc6 {[%clk 0:03:00]}  bxc6 {[%clk 0:02:39]} 11. c5 {[%clk 0:03:01]}  Qc7 {[%clk 0:02:36]} 12. O-O {[%clk 0:02:58]}  Be7 {[%clk 0:02:36]} 13. Re1 {[%clk 0:02:53]}  O-O {[%clk 0:02:36]} 14. g3 {[%clk 0:02:52]}  Rfe8 {[%clk 0:02:23]} 15. Bf4 {[%clk 0:02:51]}  Qb7 {[%clk 0:02:24]} 16. b3 {[%clk 0:02:50]}  Bd8 {[%clk 0:02:21]} 17. Bd6 {[%clk 0:02:47]}  Bc7 {[%clk 0:02:20]} 18. Ne5 {[%clk 0:02:47]}  Nxe5 {[%clk 0:02:18]} 19. dxe5 {[%clk 0:02:46]}  a5 {[%clk 0:02:09]} 20. a3 {[%clk 0:02:44]}  Reb8 {[%clk 0:02:05]} 21. Rab1 {[%clk 0:02:43]}  Ra7 {[%clk 0:02:02]} 22. b4 {[%clk 0:02:41]}  axb4 {[%clk 0:01:57]} 23. Qxb4 {[%clk 0:02:40]}  Qxb4 {[%clk 0:01:54]} 24. axb4 {[%clk 0:02:39]}  Rc8 {[%clk 0:01:18]} 25. Rec1 {[%clk 0:02:36]}  f6 {[%clk 0:01:17]} 26. Bxc7 {[%clk 0:02:32]}  Raxc7 {[%clk 0:01:11]} 27. exf6 {[%clk 0:02:30]}  gxf6 {[%clk 0:01:12]} 28. b5 {[%clk 0:02:28]}  cxb5 {[%clk 0:01:11]} 29. Rxb5 {[%clk 0:02:28]}  Kf7 {[%clk 0:01:12]} 30. f4 {[%clk 0:02:28]}  e5 {[%clk 0:01:05]} 31. Kf2 {[%clk 0:02:28]}  Ke6 {[%clk 0:01:04]} 32. Ke3 {[%clk 0:02:25]}  Rc6 {[%clk 0:01:03]} 33. fxe5 {[%clk 0:02:23]}  fxe5 {[%clk 0:01:03]} 34. Kd3 {[%clk 0:02:22]}  Ra6 {[%clk 0:01:01]} 35. Rc3 {[%clk 0:02:21]}  d4 {[%clk 0:00:59]} 36. Rcb3 {[%clk 0:02:17]}  Rcc6 {[%clk 0:00:49]} 37. Ke4 {[%clk 0:02:16]}  Ra1 {[%clk 0:00:49]} 38. Rb6 {[%clk 0:02:12]}  Re1+ {[%clk 0:00:49]} 39. Kf3 {[%clk 0:02:10]}  Kd5 {[%clk 0:00:49]} 40. Rxc6 {[%clk 0:02:03]}  Kxc6 {[%clk 0:00:50]} 41. Rb6+ {[%clk 0:01:54]}  Kxc5 {[%clk 0:00:50]} 42. Rh6 {[%clk 0:01:46]}  d3 {[%clk 0:00:48]} 0-1


[Site "https://www.chess.com"]

[Event "Titled Tuesday Blitz July 25 Late 2023"]
[White "Kushko, Dmitriy"]
[Black "Barria Santos, Jose Guilherme"]
[WhiteFideId "14162261"]
[BlackFideId "1939300"]
[WhiteElo "2820"]
[BlackElo "2592"]
[Result "0-1"]
[Round "5"]
[TimeControl "180+2"]
[Date "2023.07.25"]
[WhiteClock "0:00:00"]
[BlackClock "0:00:16"]
[Board "36"]

1. e4 {[%clk 0:03:00]}  c5 {[%clk 0:02:42]} 2. Nf3 {[%clk 0:03:00]}  e6 {[%clk 0:02:41]} 3. g3 {[%clk 0:03:00]}  Nc6 {[%clk 0:02:38]} 4. Bg2 {[%clk 0:02:59]}  Nf6 {[%clk 0:02:37]} 5. Qe2 {[%clk 0:02:59]}  d5 {[%clk 0:02:34]} 6. exd5 {[%clk 0:02:56]}  Nxd5 {[%clk 0:02:35]} 7. O-O {[%clk 0:02:56]}  Be7 {[%clk 0:02:36]} 8. Rd1 {[%clk 0:02:55]}  Bf6 {[%clk 0:02:35]} 9. Nc3 {[%clk 0:02:46]}  O-O {[%clk 0:02:34]} 10. Ne4 {[%clk 0:02:46]}  Be7 {[%clk 0:02:29]} 11. d4 {[%clk 0:02:40]}  cxd4 {[%clk 0:02:30]} 12. Nxd4 {[%clk 0:02:41]}  Nxd4 {[%clk 0:02:31]} 13. Rxd4 {[%clk 0:02:41]}  Qc7 {[%clk 0:02:28]} 14. c4 {[%clk 0:02:38]}  Nf6 {[%clk 0:02:29]} 15. Nc3 {[%clk 0:01:33]}  e5 {[%clk 0:02:13]} 16. Nb5 {[%clk 0:01:28]}  Qb8 {[%clk 0:02:11]} 17. Bf4 {[%clk 0:01:06]}  Nd7 {[%clk 0:01:52]} 18. Rxd7 {[%clk 0:00:34]}  Bxd7 {[%clk 0:01:50]} 19. Bxe5 {[%clk 0:00:35]}  Bg4 {[%clk 0:01:05]} 20. f3 {[%clk 0:00:27]}  Bc5+ {[%clk 0:01:05]} 21. Kh1 {[%clk 0:00:24]}  Re8 {[%clk 0:00:59]} 22. Re1 {[%clk 0:00:19]}  Qd8 {[%clk 0:00:48]} 23. fxg4 {[%clk 0:00:17]}  f6 {[%clk 0:00:43]} 24. Rd1 {[%clk 0:00:07]}  Qb6 {[%clk 0:00:43]} 25. Bd5+ {[%clk 0:00:04]}  Kh8 {[%clk 0:00:43]} 26. Qg2 {[%clk 0:00:03]}  Rxe5 {[%clk 0:00:43]} 27. h4 {[%clk 0:00:03]}  Rd8 {[%clk 0:00:43]} 28. Nc3 {[%clk 0:00:02]}  Bd4 {[%clk 0:00:43]} 29. Ne4 {[%clk 0:00:02]}  Qxb2 {[%clk 0:00:39]} 30. Rd2 {[%clk 0:00:02]}  Qc1+ {[%clk 0:00:34]} 31. Kh2 {[%clk 0:00:03]}  Qg1+ {[%clk 0:00:28]} 32. Qxg1 {[%clk 0:00:02]}  Bxg1+ {[%clk 0:00:29]} 33. Kxg1 {[%clk 0:00:03]}  Rxe4 {[%clk 0:00:30]} 34. Rb2 {[%clk 0:00:02]}  Re7 {[%clk 0:00:29]} 35. Kf2 {[%clk 0:00:01]}  b6 {[%clk 0:00:29]} 36. Kf3 {[%clk 0:00:02]}  g6 {[%clk 0:00:25]} 37. Rb3 {[%clk 0:00:02]}  Kg7 {[%clk 0:00:25]} 38. a4 {[%clk 0:00:02]}  Rd6 {[%clk 0:00:20]} 39. Rb5 {[%clk 0:00:02]}  h6 {[%clk 0:00:19]} 40. a5 {[%clk 0:00:02]}  f5 {[%clk 0:00:19]} 41. gxf5 {[%clk 0:00:02]}  gxf5 {[%clk 0:00:19]} 42. a6 {[%clk 0:00:02]}  Kf6 {[%clk 0:00:19]} 43. Bb7 {[%clk 0:00:02]}  Rc7 {[%clk 0:00:17]} 44. Bd5 {[%clk 0:00:02]}  Rc5 {[%clk 0:00:17]} 45. Rb3 {[%clk 0:00:02]}  b5 {[%clk 0:00:16]} 46. Re3 {[%clk 0:00:01]}  bxc4 {[%clk 0:00:16]} 47. Bb7 {[%clk 0:00:00]}  c3 {[%clk 0:00:16]} 0-1


[Site "https://www.chess.com"]

[Event "Titled Tuesday Blitz July 25 Late 2023"]
[White "Sivakumar, Shaaketh"]
[Black "Khanin, Semen"]
[WhiteFideId "30940176"]
[BlackFideId "4111990"]
[WhiteElo "2587"]
[BlackElo "2806"]
[Result "0-1"]
[Round "5"]
[TimeControl "180+2"]
[Date "2023.07.25"]
[WhiteClock "0:00:50"]
[BlackClock "0:01:32"]
[Board "38"]

1. e4 {[%clk 0:02:54]}  c5 {[%clk 0:02:59]} 2. Nf3 {[%clk 0:02:51]}  d6 {[%clk 0:03:00]} 3. d4 {[%clk 0:02:51]}  cxd4 {[%clk 0:03:01]} 4. Qxd4 {[%clk 0:02:50]}  Nc6 {[%clk 0:02:59]} 5. Bb5 {[%clk 0:02:50]}  Bd7 {[%clk 0:03:00]} 6. Qd3 {[%clk 0:02:50]}  a6 {[%clk 0:02:54]} 7. Bxc6 {[%clk 0:02:49]}  Bxc6 {[%clk 0:02:55]} 8. c4 {[%clk 0:02:50]}  e6 {[%clk 0:02:52]} 9. Nc3 {[%clk 0:02:50]}  Be7 {[%clk 0:02:51]} 10. Be3 {[%clk 0:02:50]}  Nf6 {[%clk 0:02:51]} 11. h3 {[%clk 0:02:50]}  O-O {[%clk 0:02:50]} 12. Nd4 {[%clk 0:02:49]}  Rc8 {[%clk 0:02:47]} 13. O-O {[%clk 0:02:49]}  Qa5 {[%clk 0:02:46]} 14. a3 {[%clk 0:02:46]}  Nd7 {[%clk 0:02:44]} 15. b4 {[%clk 0:02:46]}  Qh5 {[%clk 0:02:41]} 16. Nf3 {[%clk 0:02:34]}  b5 {[%clk 0:02:18]} 17. Rac1 {[%clk 0:02:23]}  bxc4 {[%clk 0:02:04]} 18. Qd4 {[%clk 0:02:14]}  f5 {[%clk 0:01:56]} 19. Bd2 {[%clk 0:01:48]}  fxe4 {[%clk 0:01:45]} 20. Nxe4 {[%clk 0:01:47]}  Rxf3 {[%clk 0:01:34]} 21. gxf3 {[%clk 0:01:36]}  Ne5 {[%clk 0:01:34]} 22. Qe3 {[%clk 0:00:54]}  Nxf3+ {[%clk 0:01:33]} 23. Kh1 {[%clk 0:00:50]}  Qxh3# {[%clk 0:01:32]} 0-1


[Site "https://www.chess.com"]

[Event "Titled Tuesday Blitz July 25 Late 2023"]
[White "Trifan, Andrei Ioan"]
[Black "Riehle, Marco"]
[WhiteFideId "12967068"]
[BlackFideId "12904392"]
[WhiteElo "2586"]
[BlackElo "2801"]
[Result "1/2-1/2"]
[Round "5"]
[TimeControl "180+2"]
[Date "2023.07.25"]
[WhiteClock "0:01:06"]
[BlackClock "0:00:39"]
[Board "39"]

1. Nf3 {[%clk 0:02:58]}  c5 {[%clk 0:02:55]} 2. e3 {[%clk 0:02:55]}  d5 {[%clk 0:02:54]} 3. b3 {[%clk 0:02:54]}  Nc6 {[%clk 0:02:54]} 4. Bb2 {[%clk 0:02:42]}  Bg4 {[%clk 0:02:47]} 5. Be2 {[%clk 0:02:40]}  Nf6 {[%clk 0:02:41]} 6. d4 {[%clk 0:02:38]}  e6 {[%clk 0:02:40]} 7. O-O {[%clk 0:02:37]}  Rc8 {[%clk 0:02:40]} 8. Nbd2 {[%clk 0:02:35]}  Be7 {[%clk 0:02:38]} 9. c4 {[%clk 0:02:32]}  cxd4 {[%clk 0:02:35]} 10. Nxd4 {[%clk 0:02:31]}  Bxe2 {[%clk 0:02:34]} 11. Qxe2 {[%clk 0:02:32]}  O-O {[%clk 0:02:28]} 12. Rfd1 {[%clk 0:02:31]}  Nxd4 {[%clk 0:02:11]} 13. Bxd4 {[%clk 0:02:30]}  a6 {[%clk 0:02:11]} 14. h3 {[%clk 0:02:28]}  h6 {[%clk 0:02:05]} 15. e4 {[%clk 0:02:26]}  dxc4 {[%clk 0:01:41]} 16. Nxc4 {[%clk 0:02:25]}  Qe8 {[%clk 0:01:41]} 17. Bxf6 {[%clk 0:02:20]}  gxf6 {[%clk 0:01:34]} 18. Nd6 {[%clk 0:02:12]}  Bxd6 {[%clk 0:01:33]} 19. Rxd6 {[%clk 0:02:12]}  Qe7 {[%clk 0:01:31]} 20. Rad1 {[%clk 0:02:08]}  Rfd8 {[%clk 0:01:29]} 21. Qg4+ {[%clk 0:01:59]}  Kh7 {[%clk 0:01:26]} 22. e5 {[%clk 0:01:53]}  fxe5 {[%clk 0:01:00]} 23. Qe4+ {[%clk 0:01:53]}  Kg8 {[%clk 0:01:01]} 24. Qxe5 {[%clk 0:01:50]}  Rxd6 {[%clk 0:01:01]} 25. Rxd6 {[%clk 0:01:47]}  Rd8 {[%clk 0:01:00]} 26. Rxd8+ {[%clk 0:01:34]}  Qxd8 {[%clk 0:01:00]} 27. Kh2 {[%clk 0:01:34]}  Qd2 {[%clk 0:00:48]} 28. Qb8+ {[%clk 0:01:27]}  Kg7 {[%clk 0:00:47]} 29. Qxb7 {[%clk 0:01:24]}  Qxa2 {[%clk 0:00:48]} 30. Qf3 {[%clk 0:01:20]}  Qa3 {[%clk 0:00:43]} 31. Qg3+ {[%clk 0:01:17]}  Kh7 {[%clk 0:00:41]} 32. Qd3+ {[%clk 0:01:15]}  Kg7 {[%clk 0:00:40]} 33. Qg3+ {[%clk 0:01:14]}  Kh7 {[%clk 0:00:40]} 34. Qd3+ {[%clk 0:01:14]}  Kg8 {[%clk 0:00:38]} 35. Qg3+ {[%clk 0:01:12]}  Kf8 {[%clk 0:00:37]} 36. Qb8+ {[%clk 0:01:11]}  Ke7 {[%clk 0:00:38]} 37. Qc7+ {[%clk 0:01:10]}  Kf6 {[%clk 0:00:38]} 38. Qf4+ {[%clk 0:01:10]}  Kg6 {[%clk 0:00:38]} 39. Qg3+ {[%clk 0:01:06]}  Kh7 {[%clk 0:00:39]} 1/2-1/2


[Site "https://www.chess.com"]

[Event "Titled Tuesday Blitz July 25 Late 2023"]
[White "Cappelletto, Joshuaede"]
[Black "Bauman_Guy"]
[WhiteFideId "2824383"]
[WhiteElo "2580"]
[BlackElo "2793"]
[Result "0-1"]
[Round "5"]
[TimeControl "180+2"]
[Date "2023.07.25"]
[WhiteClock "0:00:18"]
[BlackClock "0:00:41"]
[Board "40"]

1. c4 {[%clk 0:03:00]}  Nf6 {[%clk 0:02:59]} 2. Nc3 {[%clk 0:02:58]}  e5 {[%clk 0:02:59]} 3. d3 {[%clk 0:02:49]}  g6 {[%clk 0:02:58]} 4. g3 {[%clk 0:02:44]}  Bg7 {[%clk 0:02:58]} 5. Bg2 {[%clk 0:02:44]}  O-O {[%clk 0:02:58]} 6. e3 {[%clk 0:02:42]}  c6 {[%clk 0:02:57]} 7. Nge2 {[%clk 0:02:42]}  d5 {[%clk 0:02:57]} 8. O-O {[%clk 0:02:39]}  d4 {[%clk 0:02:56]} 9. Na4 {[%clk 0:02:38]}  Re8 {[%clk 0:02:50]} 10. b4 {[%clk 0:02:34]}  dxe3 {[%clk 0:02:39]} 11. Bxe3 {[%clk 0:02:34]}  Bf5 {[%clk 0:02:32]} 12. d4 {[%clk 0:02:19]}  Ng4 {[%clk 0:02:32]} 13. d5 {[%clk 0:02:09]}  Nxe3 {[%clk 0:02:24]} 14. fxe3 {[%clk 0:02:09]}  cxd5 {[%clk 0:02:24]} 15. Bxd5 {[%clk 0:02:05]}  Nc6 {[%clk 0:02:22]} 16. Nc5 {[%clk 0:02:04]}  Nxb4 {[%clk 0:02:18]} 17. Nxb7 {[%clk 0:01:57]}  Qg5 {[%clk 0:02:02]} 18. Nd6 {[%clk 0:01:36]}  Nxd5 {[%clk 0:01:54]} 19. Qxd5 {[%clk 0:01:35]}  Qxe3+ {[%clk 0:01:52]} 20. Rf2 {[%clk 0:01:34]}  Be6 {[%clk 0:01:51]} 21. Qc6 {[%clk 0:01:24]}  Red8 {[%clk 0:01:43]} 22. Rf1 {[%clk 0:01:24]}  Rab8 {[%clk 0:01:26]} 23. Qc7 {[%clk 0:01:17]}  Qb6 {[%clk 0:01:18]} 24. Qxb6 {[%clk 0:01:11]}  axb6 {[%clk 0:01:18]} 25. Nxf7 {[%clk 0:01:11]}  Rf8 {[%clk 0:01:18]} 26. Nd6 {[%clk 0:00:56]}  Rbd8 {[%clk 0:01:17]} 27. Rxf8+ {[%clk 0:00:52]}  Bxf8 {[%clk 0:01:17]} 28. Ne4 {[%clk 0:00:50]}  Bxc4 {[%clk 0:01:16]} 29. Rf2 {[%clk 0:00:48]}  Rd1+ {[%clk 0:01:14]} 30. Kg2 {[%clk 0:00:44]}  Kg7 {[%clk 0:01:08]} 31. N2c3 {[%clk 0:00:43]}  Rd4 {[%clk 0:01:07]} 32. Rb2 {[%clk 0:00:36]}  b5 {[%clk 0:00:57]} 33. a4 {[%clk 0:00:33]}  b4 {[%clk 0:00:56]} 34. a5 {[%clk 0:00:29]}  bxc3 {[%clk 0:00:56]} 35. Nxc3 {[%clk 0:00:30]}  e4 {[%clk 0:00:51]} 36. Rb7+ {[%clk 0:00:27]}  Kh6 {[%clk 0:00:51]} 37. Rb6 {[%clk 0:00:22]}  Bc5 {[%clk 0:00:44]} 38. Rc6 {[%clk 0:00:21]}  Bb4 {[%clk 0:00:44]} 39. Na4 {[%clk 0:00:18]}  Bxa5 {[%clk 0:00:41]} 0-1


[Site "https://www.chess.com"]

[Event "Titled Tuesday Blitz July 25 Late 2023"]
[White "Oro, Faustino"]
[Black "Attacker_2006"]
[WhiteFideId "20000197"]
[WhiteElo "2788"]
[BlackElo "2573"]
[Result "1-0"]
[Round "5"]
[TimeControl "180+2"]
[Date "2023.07.25"]
[WhiteClock "0:00:19"]
[BlackClock "0:00:00"]
[Board "41"]

1. e4 {[%clk 0:03:00]}  c5 {[%clk 0:02:57]} 2. Nf3 {[%clk 0:02:56]}  d6 {[%clk 0:02:57]} 3. d4 {[%clk 0:02:55]}  cxd4 {[%clk 0:02:58]} 4. Nxd4 {[%clk 0:02:56]}  Nf6 {[%clk 0:02:58]} 5. Nc3 {[%clk 0:02:55]}  a6 {[%clk 0:02:59]} 6. Be2 {[%clk 0:02:55]}  e5 {[%clk 0:02:55]} 7. Nb3 {[%clk 0:02:55]}  Be7 {[%clk 0:02:56]} 8. Be3 {[%clk 0:02:55]}  Be6 {[%clk 0:02:56]} 9. Qd3 {[%clk 0:02:55]}  Nbd7 {[%clk 0:02:50]} 10. O-O {[%clk 0:02:54]}  O-O {[%clk 0:02:51]} 11. Nd5 {[%clk 0:02:55]}  Bxd5 {[%clk 0:02:45]} 12. exd5 {[%clk 0:02:55]}  b6 {[%clk 0:02:36]} 13. c4 {[%clk 0:02:53]}  Nc5 {[%clk 0:02:36]} 14. Qc2 {[%clk 0:02:51]}  Rc8 {[%clk 0:02:34]} 15. Nd2 {[%clk 0:02:46]}  b5 {[%clk 0:02:32]} 16. b4 {[%clk 0:02:33]}  Ncd7 {[%clk 0:02:27]} 17. Qb3 {[%clk 0:02:31]}  bxc4 {[%clk 0:02:26]} 18. Bxc4 {[%clk 0:02:32]}  Ng4 {[%clk 0:02:08]} 19. Bxa6 {[%clk 0:02:24]}  Nxe3 {[%clk 0:02:09]} 20. Qxe3 {[%clk 0:02:21]}  Rc2 {[%clk 0:01:54]} 21. Bd3 {[%clk 0:02:17]}  Bg5 {[%clk 0:01:52]} 22. Qh3 {[%clk 0:02:14]}  g6 {[%clk 0:01:19]} 23. Bxc2 {[%clk 0:02:13]}  Bxd2 {[%clk 0:01:19]} 24. a3 {[%clk 0:02:11]}  f5 {[%clk 0:01:18]} 25. Qd3 {[%clk 0:02:09]}  Bf4 {[%clk 0:01:10]} 26. a4 {[%clk 0:02:05]}  e4 {[%clk 0:01:10]} 27. Qh3 {[%clk 0:01:53]}  Qb6 {[%clk 0:00:42]} 28. Rab1 {[%clk 0:01:46]}  Rc8 {[%clk 0:00:41]} 29. a5 {[%clk 0:01:43]}  Qd4 {[%clk 0:00:39]} 30. Ba4 {[%clk 0:01:37]}  Ne5 {[%clk 0:00:35]} 31. Bc6 {[%clk 0:01:32]}  Nd3 {[%clk 0:00:28]} 32. b5 {[%clk 0:01:24]}  e3 {[%clk 0:00:27]} 33. fxe3 {[%clk 0:01:05]}  Bxe3+ {[%clk 0:00:28]} 34. Kh1 {[%clk 0:01:05]}  Nf2+ {[%clk 0:00:18]} 35. Rxf2 {[%clk 0:01:05]}  Bxf2 {[%clk 0:00:19]} 36. b6 {[%clk 0:00:56]}  Qe4 {[%clk 0:00:13]} 37. Rf1 {[%clk 0:00:47]}  Bc5 {[%clk 0:00:10]} 38. Qb3 {[%clk 0:00:38]}  Rb8 {[%clk 0:00:07]} 39. b7 {[%clk 0:00:36]}  h5 {[%clk 0:00:04]} 40. a6 {[%clk 0:00:36]}  Qe2 {[%clk 0:00:04]} 41. Ra1 {[%clk 0:00:29]}  Bd4 {[%clk 0:00:04]} 42. Qd1 {[%clk 0:00:23]}  Qe5 {[%clk 0:00:02]} 43. a7 {[%clk 0:00:19]}  Bxa7 {[%clk 0:00:02]} 44. Rxa7 {[%clk 0:00:19]}  h4 {[%clk 0:00:02]} 45. h3 {[%clk 0:00:19]}  Kg7 {[%clk 0:00:00]} 46. Ra8 {[%clk 0:00:19]} 1-0


[Site "https://www.chess.com"]